fUST/lending_fUST_20240828
["ID","MTS","AMOUNT","RATE_DAILY","PERIOD"]
[336413500,1724817044859,-424.63102857,0.00011506,2]
[336413501,1724817044868,-500.0,0.00011506,2]
[336413502,1724817044878,-500.0,0.00011506,2]
[336413503,1724817044888,-500.0,0.00011506,2]
[336413504,1724817044898,-500.0,0.00011506,2]
[336413505,1724817044908,-500.0,0.00011506,2]
[336413506,1724817044918,-318.07656927,0.00011506,2]
[336413507,1724817044928,-500.0,0.00011506,2]
[336413508,1724817044938,-500.0,0.00011506,2]
[336413509,1724817044948,-500.0,0.00011506,2]
[336413510,1724817044958,-371.07159877,0.00011506,2]
[336413511,1724817044967,-500.0,0.00011506,2]
[336413512,1724817044978,-502.4938907,0.00011506,2]
[336413513,1724817044988,-500.0,0.00011506,2]
[336413514,1724817044999,-151.62,0.00011506,2]
[336413515,1724817045008,-500.0,0.00011506,2]
[336413516,1724817045019,-500.0,0.00011506,2]
[336413517,1724817045029,-638.79,0.00011506,2]
[336413518,1724817045040,-500.0,0.00011506,2]
[336413519,1724817045050,-500.0,0.00011506,2]
[336413520,1724817045061,-573.14,0.00011506,2]
[336413521,1724817045071,-500.0,0.00011506,2]
[336413522,1724817045080,-500.0,0.00011506,2]
[336413523,1724817045090,-500.0,0.00011506,2]
[336413524,1724817045100,-500.0,0.00011506,2]
[336413525,1724817045111,-500.0,0.00011506,2]
[336413526,1724817045121,-348.82455249,0.00011506,2]
[336413527,1724817045130,-627.93,0.00011506,2]
[336413528,1724817045140,-500.0,0.00011506,2]
[336413529,1724817045151,-230.73633879,0.00011506,2]
[336413530,1724817045160,-374.05,0.00011506,2]
[336413531,1724817045170,-500.0,0.00011506,2]
[336413532,1724817045179,-500.0,0.00011506,2]
[336413533,1724817045188,-500.0,0.00011506,2]
[336413534,1724817045199,-354.27587818,0.00011506,2]
[336413535,1724817045209,-365.08,0.00011506,2]
[336413536,1724817045218,-500.0,0.00011506,2]
[336413537,1724817045228,-500.0,0.00011506,2]
[336413538,1724817045238,-500.0,0.00011506,2]
[336413539,1724817045394,-500.0,0.00011506,2]
[336413540,1724817045406,-500.0,0.00011506,2]
[336413541,1724817045417,-500.0,0.00011506,2]
[336413542,1724817045426,-500.0,0.00011506,2]
[336413543,1724817045436,-500.0,0.00011506,2]
[336413544,1724817045446,-331.06084156,0.00011506,2]
[336413545,1724817045456,-500.0,0.00011506,2]
[336413546,1724817045468,-515.2623629,0.00011506,2]
[336413547,1724817045478,-2462.28,0.00011506,2]
[336413548,1724817045488,-529.29,0.00011506,2]
[336413549,1724817045498,-1772.74,0.00011506,2]
[336413550,1724817045509,-299.49134427,0.00011506,2]
[336413551,1724817045520,-577.55680481,0.00011506,2]
[336413552,1724817045532,-500.0,0.00011506,2]
[336413553,1724817045544,-615.62314291,0.00011506,2]
[336413554,1724817045555,-500.0,0.00011506,2]
[336413555,1724817045564,-500.0,0.00011506,2]
[336413556,1724817045574,-500.0,0.00011506,2]
[336413557,1724817045585,-437.23187944,0.00011506,2]
[336413558,1724817045594,-500.0,0.00011506,2]
[336413559,1724817045604,-500.0,0.00011506,2]
[336413560,1724817045614,-437.30527446,0.00011506,2]
[336413561,1724817045624,-500.0,0.00011506,2]
[336413562,1724817045633,-500.0,0.00011506,2]
[336413563,1724817045643,-523.96,0.00011506,2]
[336413564,1724817045652,-500.0,0.00011506,2]
[336413565,1724817045663,-500.0,0.00011506,2]
[336413566,1724817045673,-500.0,0.00011506,2]
[336413567,1724817045684,-2017.69,0.00011506,2]
[336413568,1724817045696,-500.0,0.00011506,2]
[336413569,1724817045707,-500.0,0.00011506,2]
[336413570,1724817045716,-600.09958272,0.00011506,2]
[336413571,1724817045726,-500.0,0.00011506,2]
[336413572,1724817045735,-500.0,0.00011506,2]
[336413573,1724817045745,-500.0,0.00011506,2]
[336413574,1724817045754,-500.0,0.00011506,2]
[336413575,1724817045763,-3505.12,0.00011506,2]
[336413576,1724817045772,-390.13,0.00011506,2]
[336413577,1724817045783,-500.0,0.00011506,2]
[336413578,1724817045792,-500.0,0.00011506,2]
[336413579,1724817045805,-530.04,0.00011506,2]
[336413580,1724817045816,-500.0,0.00011506,2]
[336413581,1724817045826,-1714.78,0.00011506,2]
[336413582,1724817045835,-500.0,0.00011506,2]
[336413583,1724817045845,-500.0,0.00011506,2]
[336413584,1724817045854,-500.0,0.00011506,2]
[336413585,1724817045864,-500.0,0.00011506,2]
[336413586,1724817045873,-500.0,0.00011506,2]
[336413587,1724817045883,-519.2,0.00011506,2]
[336413588,1724817045894,-500.0,0.00011506,2]
[336413589,1724817045904,-500.0,0.00011506,2]
[336413590,1724817045913,-500.0,0.00011506,2]
[336413591,1724817045923,-500.0,0.00011506,2]
[336413592,1724817045933,-500.0,0.00011506,2]
[336413593,1724817045943,-500.0,0.00011506,2]
[336413594,1724817045952,-500.0,0.00011506,2]
[336413595,1724817045961,-248.47,0.00011506,2]
[336413596,1724817045971,-845.11,0.00011506,2]
[336413597,1724817045981,-500.0,0.00011506,2]
[336413598,1724817045991,-1931.29,0.00011506,2]
[336413599,1724817046000,-620.35,0.00011506,2]
[336413600,1724817046010,-511.71,0.00011506,2]
[336413602,1724817046019,-409.55196573,0.00011506,2]
[336413603,1724817046028,-508.3,0.00011506,2]
[336413604,1724817046038,-500.0,0.00011506,2]
[336413605,1724817046048,-1019.0,0.00011506,2]
[336413606,1724817046059,-4333.78,0.00011506,2]
[336413607,1724817046069,-526.01,0.00011506,2]
[336413608,1724817046079,-192.53,0.00011506,2]
[336413609,1724817046089,-500.0,0.00011506,2]
[336413610,1724817046099,-500.0,0.00011506,2]
[336413611,1724817046109,-500.0,0.00011506,2]
[336413612,1724817046119,-500.0,0.00011506,2]
[336413613,1724817046129,-500.0,0.00011506,2]
[336413614,1724817046139,-2280.18,0.00011506,2]
[336413615,1724817046148,-500.0,0.00011506,2]
[336413616,1724817046157,-2059.76,0.00011506,2]
[336413617,1724817046167,-500.0,0.00011506,2]
[336413618,1724817046176,-500.0,0.00011506,2]
[336413620,1724817046186,-500.0,0.00011506,2]
[336413621,1724817046195,-500.0,0.00011506,2]
[336413622,1724817046205,-500.0,0.00011506,2]
[336413623,1724817046215,-10275.59,0.00011506,2]
[336413624,1724817046224,-500.0,0.00011506,2]
[336413625,1724817046234,-585.37,0.00011506,2]
[336413626,1724817046243,-500.0,0.00011506,2]
[336413627,1724817046253,-500.0,0.00011506,2]
[336413628,1724817046263,-500.0,0.00011506,2]
[336413629,1724817046272,-500.0,0.00011506,2]
[336413630,1724817046281,-500.0,0.00011506,2]
[336413631,1724817046292,-500.0,0.00011506,2]
[336413632,1724817046301,-500.0,0.00011506,2]
[336413633,1724817046311,-500.0,0.00011506,2]
[336413634,1724817046321,-500.0,0.00011506,2]
[336413635,1724817046331,-500.0,0.00011506,2]
[336413637,1724817046342,-984.45,0.00011506,2]
[336413639,1724817046353,-500.0,0.00011506,2]
[336413641,1724817046364,-2679.66,0.00011506,2]
[336413643,1724817046375,-500.0,0.00011506,2]
[336413644,1724817046386,-500.0,0.00011573,2]
[336413646,1724817046398,-500.20815644,0.00011573,2]
[336413647,1724817046407,-154.74467129,0.00011621,2]
[336413648,1724817046417,-166.52288171,0.00011621,2]
[336413649,1724817046427,-192.06681084,0.00011621,2]
[336413650,1724817046438,-752.23,0.00011691,2]
[336413651,1724817046448,-600.0,0.00011692,2]
[336413652,1724817046460,-600.0,0.00011692,2]
[336413653,1724817046470,-600.0,0.00011692,2]
[336413654,1724817046481,-535.33512,0.00011712,2]
[336413655,1724817046491,-521.16131332,0.00011731,2]
[336413656,1724817046503,-154.74467129,0.00011731,2]
[336413657,1724817046512,-934.65211132,0.00011731,2]
[336413658,1724817046524,-174.99644935,0.00011731,2]
[336413659,1724817046534,-695.42593632,0.00011731,2]
[336413660,1724817046544,-154.56721181,0.00011731,2]
[336413661,1724817046553,-19536.5576425,0.00011761,2]
[336413662,1724817046562,-500.0,0.00011773,2]
[336413663,1724817046572,-752.23,0.00011779,2]
[336413664,1724817046581,-500.0,0.0001178,2]
[336413665,1724817046592,-500.0,0.0001178,2]
[336413666,1724817046603,-500.0,0.0001178,2]
[336413667,1724817046615,-638.85,0.0001178,2]
[336413668,1724817046626,-623.26,0.0001178,2]
[336413669,1724817046638,-628.02,0.0001178,2]
[336413670,1724817046647,-500.0,0.0001178,2]
[336413671,1724817046656,-500.0,0.0001178,2]
[336413672,1724817046665,-500.0,0.0001178,2]
[336413673,1724817046677,-500.0,0.0001178,2]
[336413674,1724817046688,-502.17748487,0.0001178,2]
[336413675,1724817046699,-500.0,0.0001178,2]
[336413676,1724817046709,-500.0,0.0001178,2]
[336413677,1724817046718,-400.96863812,0.0001178,2]
[336413678,1724817046728,-500.0,0.0001178,2]
[336413679,1724817046737,-500.0,0.0001178,2]
[336413680,1724817046747,-500.0,0.0001178,2]
[336413681,1724817046758,-502.69517344,0.0001178,2]
[336413682,1724817046768,-500.0,0.0001178,2]
[336413683,1724817046779,-500.0,0.0001178,2]
[336413684,1724817046789,-561.59,0.0001178,2]
[336413685,1724817046801,-500.0,0.0001178,2]
[336413686,1724817046815,-500.0,0.0001178,2]
[336413687,1724817046825,-500.0,0.0001178,2]
[336413688,1724817046834,-500.0,0.0001178,2]
[336413689,1724817046845,-627.93,0.0001178,2]
[336413690,1724817046857,-500.0,0.0001178,2]
[336413691,1724817046866,-166.44,0.0001178,2]
[336413692,1724817046876,-500.0,0.0001178,2]
[336413693,1724817046888,-167.9,0.0001178,2]
[336413694,1724817046897,-366.38125659,0.0001178,2]
[336413695,1724817046907,-500.0,0.0001178,2]
[336413696,1724817046917,-500.0,0.0001178,2]
[336413697,1724817046927,-162.70529747,0.0001178,2]
[336413698,1724817046936,-500.0,0.0001178,2]
[336413699,1724817046948,-500.0,0.0001178,2]
[336413700,1724817046960,-500.0,0.0001178,2]
[336413701,1724817046971,-502.05045916,0.0001178,2]
[336413702,1724817046982,-330.0848529,0.0001178,2]
[336413703,1724817046993,-2462.28,0.0001178,2]
[336413704,1724817047004,-529.29,0.0001178,2]
[336413705,1724817047013,-1772.74,0.0001178,2]
[336413706,1724817047023,-500.0,0.0001178,2]
[336413707,1724817047033,-500.0,0.0001178,2]
[336413708,1724817047050,-500.0,0.0001178,2]
[336413709,1724817047061,-500.0,0.0001178,2]
[336413710,1724817047071,-500.0,0.0001178,2]
[336413711,1724817047081,-500.0,0.0001178,2]
[336413712,1724817047093,-528.32,0.0001178,2]
[336413713,1724817047104,-523.96,0.0001178,2]
[336413714,1724817047115,-500.0,0.0001178,2]
[336413715,1724817047125,-500.0,0.0001178,2]
[336413716,1724817047135,-500.0,0.0001178,2]
[336413717,1724817047146,-2017.69,0.0001178,2]
[336413718,1724817047156,-500.0,0.0001178,2]
[336413719,1724817047166,-500.0,0.0001178,2]
[336413720,1724817047176,-500.0,0.0001178,2]
[336413721,1724817047187,-3505.12,0.0001178,2]
[336413722,1724817047197,-514.99308148,0.0001178,2]
[336413723,1724817047207,-500.0,0.0001178,2]
[336413724,1724817047216,-530.04,0.0001178,2]
[336413725,1724817047225,-500.0,0.0001178,2]
[336413726,1724817047234,-1714.78,0.0001178,2]
[336413727,1724817047244,-500.0,0.0001178,2]
[336413728,1724817047255,-500.0,0.0001178,2]
[336413729,1724817047265,-500.0,0.0001178,2]
[336413730,1724817047275,-500.0,0.0001178,2]
[336413731,1724817047287,-412.67,0.0001178,2]
[336413732,1724817047297,-365.56,0.0001178,2]
[336413733,1724817047306,-500.0,0.0001178,2]
[336413734,1724817047318,-500.0,0.0001178,2]
[336413735,1724817047328,-220.58,0.0001178,2]
[336413736,1724817047337,-500.0,0.0001178,2]
[336413737,1724817047347,-554.16,0.0001178,2]
[336413738,1724817047357,-500.0,0.0001178,2]
[336413739,1724817047367,-845.11,0.0001178,2]
[336413740,1724817047377,-534.47,0.0001178,2]
[336413741,1724817047386,-1931.29,0.0001178,2]
[336413742,1724817047395,-620.35,0.0001178,2]
[336413743,1724817047407,-1019.0,0.0001178,2]
[336413744,1724817047416,-4333.78,0.0001178,2]
[336413745,1724817047425,-526.01,0.0001178,2]
[336413746,1724817047448,-500.0,0.0001178,2]
[336413747,1724817047458,-500.0,0.0001178,2]
[336413748,1724817047467,-500.0,0.0001178,2]
[336413749,1724817047476,-2280.18,0.0001178,2]
[336413750,1724817047486,-500.0,0.0001178,2]
[336413751,1724817047496,-2059.76,0.0001178,2]
[336413752,1724817047506,-500.0,0.0001178,2]
[336413753,1724817047516,-500.0,0.0001178,2]
[336413754,1724817047529,-236.77219987,0.0001178,2]
[336413755,1724817047540,-10275.59,0.0001178,2]
[336413756,1724817047550,-500.0,0.0001178,2]
[336413757,1724817047561,-500.0,0.0001178,2]
[336413758,1724817047571,-500.0,0.0001178,2]
[336413759,1724817047581,-500.0,0.0001178,2]
[336413760,1724817047591,-500.0,0.0001178,2]
[336413762,1724817047603,-500.0,0.0001178,2]
[336413764,1724817047613,-500.0,0.0001178,2]
[336413766,1724817047623,-984.45,0.0001178,2]
[336413767,1724817047634,-500.0,0.0001178,2]
[336413769,1724817047643,-500.0,0.0001178,2]
[336413770,1724817047653,-2679.66,0.0001178,2]
[336413771,1724817047662,-422.69720013,0.00011894,2]
[336413772,1724817047672,-223.73028006,0.00011894,2]
[336413773,1724817047681,-422.69720013,0.00011894,2]
[336413774,1724817047691,-154.56721181,0.00011894,2]
[336413775,1724817047700,-752.23,0.00011899,2]
[336413776,1724817047710,-752.23,0.00011899,2]
[336413777,1724817047719,-752.23,0.00011899,2]
[336413778,1724817047729,-752.23,0.00011899,2]
[336413779,1724817047738,-752.23,0.00011899,2]
[336413780,1724817047747,-752.23,0.00011899,2]
[336413781,1724817047757,-752.23,0.00011899,2]
[336413782,1724817047767,-752.23,0.00011899,2]
[336413783,1724817047776,-752.23,0.00011899,2]
[336413784,1724817047786,-752.23,0.00011899,2]
[336413785,1724817047795,-752.23,0.00011899,2]
[336413786,1724817047808,-752.38149673,0.00011899,2]
[336413787,1724817047820,-622362.367393,0.000119,2]
[336413788,1724817047829,-600.0,0.00011958,2]
[336413789,1724817047840,-600.0,0.00011958,2]
[336413790,1724817047850,-404.8069796,0.00011987,2]
[336413791,1724817047862,-154.55950541,0.00011999,2]
[336413792,1724817047873,-500.0,0.00012054,2]
[336413793,1724817047883,-500.0,0.00012054,2]
[336413794,1724817047896,-628.02,0.00012054,2]
[336413795,1724817047908,-500.0,0.00012054,2]
[336413796,1724817047917,-500.0,0.00012054,2]
[336413797,1724817047927,-500.0,0.00012054,2]
[336413798,1724817047937,-500.0,0.00012054,2]
[336413799,1724817047946,-500.0,0.00012054,2]
[336413800,1724817047956,-500.0,0.00012054,2]
[336413801,1724817047966,-228.78,0.00012054,2]
[336413802,1724817047975,-536.53,0.00012054,2]
[336413803,1724817047985,-561.94579405,0.00012054,2]
[336413804,1724817047995,-271.51082882,0.00012054,2]
[336413805,1724817048005,-500.0,0.00012054,2]
[336413806,1724817048015,-500.0,0.00012054,2]
[336413807,1724817048024,-500.0,0.00012054,2]
[336413808,1724817048035,-500.0,0.00012054,2]
[336413809,1724817048044,-627.93,0.00012054,2]
[336413810,1724817048054,-500.0,0.00012054,2]
[336413811,1724817048064,-360.22935746,0.00012054,2]
[336413812,1724817048073,-331.88796279,0.00012054,2]
[336413813,1724817048083,-500.0,0.00012054,2]
[336413814,1724817048092,-417.30141307,0.00012054,2]
[336413815,1724817048103,-500.0,0.00012054,2]
[336413816,1724817048112,-500.0,0.00012054,2]
[336413817,1724817048122,-2462.28,0.00012054,2]
[336413818,1724817048131,-529.29,0.00012054,2]
[336413819,1724817048140,-1772.74,0.00012054,2]
[336413820,1724817048151,-500.0,0.00012054,2]
[336413821,1724817048161,-500.0,0.00012054,2]
[336413822,1724817048171,-500.0,0.00012054,2]
[336413823,1724817048181,-500.0,0.00012054,2]
[336413824,1724817048191,-500.0,0.00012054,2]
[336413825,1724817048201,-500.0,0.00012054,2]
[336413826,1724817048210,-523.96,0.00012054,2]
[336413827,1724817048220,-500.0,0.00012054,2]
[336413828,1724817048229,-500.0,0.00012054,2]
[336413829,1724817048239,-500.0,0.00012054,2]
[336413830,1724817048248,-2017.69,0.00012054,2]
[336413831,1724817048258,-528.47095568,0.00012054,2]
[336413832,1724817048269,-289.61,0.00012054,2]
[336413833,1724817048280,-500.0,0.00012054,2]
[336413834,1724817048291,-3505.12,0.00012054,2]
[336413835,1724817048302,-530.04,0.00012054,2]
[336413836,1724817048312,-1714.78,0.00012054,2]
[336413837,1724817048322,-500.0,0.00012054,2]
[336413838,1724817048332,-265.12772898,0.00012054,2]
[336413839,1724817048342,-500.0,0.00012054,2]
[336413840,1724817048353,-535.06219005,0.00012054,2]
[336413841,1724817048363,-500.0,0.00012054,2]
[336413842,1724817048374,-500.0,0.00012054,2]
[336413843,1724817048383,-226.55,0.00012054,2]
[336413844,1724817048392,-500.0,0.00012054,2]
[336413845,1724817048401,-845.11,0.00012054,2]
[336413846,1724817048411,-1931.29,0.00012054,2]
[336413847,1724817048420,-620.35,0.00012054,2]
[336413848,1724817048430,-1019.0,0.00012054,2]
[336413849,1724817048440,-4333.78,0.00012054,2]
[336413850,1724817048451,-526.01,0.00012054,2]
[336413851,1724817048461,-500.0,0.00012054,2]
[336413852,1724817048471,-500.0,0.00012054,2]
[336413853,1724817048481,-310.17,0.00012054,2]
[336413854,1724817048492,-2280.18,0.00012054,2]
[336413855,1724817048502,-500.0,0.00012054,2]
[336413856,1724817048511,-2059.76,0.00012054,2]
[336413857,1724817048524,-500.0,0.00012054,2]
[336413858,1724817048538,-252.08937695,0.00012054,2]
[336413859,1724817048548,-10275.59,0.00012054,2]
[336413860,1724817048558,-500.0,0.00012054,2]
[336413861,1724817048569,-500.0,0.00012054,2]
[336413862,1724817048579,-500.0,0.00012054,2]
[336413863,1724817048590,-591.27997667,0.00012054,2]
[336413864,1724817048600,-500.0,0.00012054,2]
[336413865,1724817048611,-500.0,0.00012054,2]
[336413866,1724817048621,-152.77,0.00012054,2]
[336413867,1724817048631,-984.45,0.00012054,2]
[336413868,1724817048641,-500.0,0.00012054,2]
[336413869,1724817048651,-500.0,0.00012054,2]
[336413870,1724817048661,-2679.66,0.00012054,2]
[336413871,1724817048671,-1000.0,0.00012121,2]
[336413872,1724817048680,-9030.71466467,0.0001216,2]
[336413873,1724817048689,-600.0,0.00012224,2]
[336413874,1724817048699,-1000.0,0.00012321,2]
[336413875,1724817048708,-500.0,0.00012328,2]
[336413876,1724817048718,-628.02,0.00012328,2]
[336413877,1724817048727,-500.0,0.00012328,2]
[336413878,1724817048737,-500.0,0.00012328,2]
[336413879,1724817048746,-271.78,0.00012328,2]
[336413880,1724817048756,-500.0,0.00012328,2]
[336413881,1724817048766,-193.1,0.00012328,2]
[336413882,1724817048775,-500.0,0.00012328,2]
[336413883,1724817048788,-500.0,0.00012328,2]
[336413884,1724817048797,-386.88,0.00012328,2]
[336413885,1724817048811,-241.65,0.00012328,2]
[336413886,1724817048820,-627.93,0.00012328,2]
[336413887,1724817048830,-500.0,0.00012328,2]
[336413888,1724817048840,-412.83963486,0.00012328,2]
[336413889,1724817048851,-409.05557946,0.00012328,2]
[336413890,1724817048861,-500.0,0.00012328,2]
[336413891,1724817048871,-2462.28,0.00012328,2]
[336413892,1724817048882,-529.29,0.00012328,2]
[336413893,1724817048892,-1772.74,0.00012328,2]
[336413894,1724817048901,-500.0,0.00012328,2]
[336413895,1724817048912,-500.0,0.00012328,2]
[336413896,1724817048922,-500.0,0.00012328,2]
[336413897,1724817048931,-276.13,0.00012328,2]
[336413898,1724817048941,-500.0,0.00012328,2]
[336413899,1724817048950,-500.0,0.00012328,2]
[336413900,1724817048960,-523.96,0.00012328,2]
[336413901,1724817048970,-500.0,0.00012328,2]
[336413902,1724817048980,-150.02578224,0.00012328,2]
[336413903,1724817048989,-2017.69,0.00012328,2]
[336413904,1724817048998,-500.0,0.00012328,2]
[336413905,1724817049008,-3505.12,0.00012328,2]
[336413906,1724817049018,-530.04,0.00012328,2]
[336413907,1724817049028,-1714.78,0.00012328,2]
[336413908,1724817049166,-500.0,0.00012328,2]
[336413909,1724817049176,-500.0,0.00012328,2]
[336413910,1724817049186,-500.0,0.00012328,2]
[336413911,1724817049196,-500.0,0.00012328,2]
[336413912,1724817049206,-845.11,0.00012328,2]
[336413913,1724817049216,-620.35,0.00012328,2]
[336413914,1724817049225,-1931.29,0.00012328,2]
[336413915,1724817049235,-1019.0,0.00012328,2]
[336413916,1724817049244,-4333.78,0.00012328,2]
[336413917,1724817049254,-526.01,0.00012328,2]
[336413918,1724817049263,-278.67,0.00012328,2]
[336413919,1724817049273,-500.0,0.00012328,2]
[336413920,1724817049286,-2280.18,0.00012328,2]
[336413921,1724817049295,-500.0,0.00012328,2]
[336413922,1724817049305,-2059.76,0.00012328,2]
[336413923,1724817049315,-500.0,0.00012328,2]
[336413924,1724817049324,-10275.59,0.00012328,2]
[336413925,1724817049334,-306.11928284,0.00012328,2]
[336413926,1724817049343,-186.57,0.00012328,2]
[336413927,1724817049353,-500.0,0.00012328,2]
[336413928,1724817049363,-310.3782227,0.00012328,2]
[336413929,1724817049374,-500.0,0.00012328,2]
[336413930,1724817049383,-984.45,0.00012328,2]
[336413931,1724817049393,-243.19777595,0.00012328,2]
[336413932,1724817049403,-500.0,0.00012328,2]
[336413933,1724817049412,-2679.66,0.00012328,2]
[336413934,1724817049422,-600.0,0.00012389,2]
[336413935,1724817049432,-600.0,0.0001249,2]
[336413936,1724817049442,-600.0,0.0001249,2]
[336413937,1724817049451,-7019.64469415,0.00012516,2]
[336413938,1724817049461,-21631.59921356,0.00012516,2]
[336413939,1724817049470,-500.0,0.00012602,2]
[336413940,1724817049480,-628.02,0.00012602,2]
[336413941,1724817049490,-556.5724918,0.00012602,2]
[336413942,1724817049501,-500.0,0.00012602,2]
[336413943,1724817049510,-477.45,0.00012602,2]
[336413944,1724817049520,-585.88,0.00012602,2]
[336413945,1724817049531,-500.0,0.00012602,2]
[336413946,1724817049544,-627.93,0.00012602,2]
[336413947,1724817049553,-604.15264413,0.00012602,2]
[336413948,1724817049563,-500.0,0.00012602,2]
[336413949,1724817049572,-2462.28,0.00012602,2]
[336413950,1724817049582,-529.29,0.00012602,2]
[336413951,1724817049591,-1772.74,0.00012602,2]
[336413952,1724817049601,-500.0,0.00012602,2]
[336413953,1724817049612,-500.0,0.00012602,2]
[336413954,1724817049623,-500.0,0.00012602,2]
[336413955,1724817049633,-500.0,0.00012602,2]
[336413956,1724817049643,-276.82,0.00012602,2]
[336413957,1724817049652,-523.96,0.00012602,2]
[336413958,1724817049661,-500.0,0.00012602,2]
[336413959,1724817049670,-2017.69,0.00012602,2]
[336413960,1724817049680,-485.05135613,0.00012602,2]
[336413961,1724817049690,-3505.12,0.00012602,2]
[336413962,1724817049702,-530.04,0.00012602,2]
[336413963,1724817049712,-1714.78,0.00012602,2]
[336413964,1724817049721,-500.0,0.00012602,2]
[336413965,1724817049731,-500.0,0.00012602,2]
[336413966,1724817049740,-500.0,0.00012602,2]
[336413967,1724817049749,-462.4,0.00012602,2]
[336413968,1724817049759,-845.11,0.00012602,2]
[336413969,1724817049768,-620.35,0.00012602,2]
[336413970,1724817049778,-1931.29,0.00012602,2]
[336413971,1724817049791,-1019.0,0.00012602,2]
[336413972,1724817049800,-4333.78,0.00012602,2]
[336413973,1724817049811,-526.01,0.00012602,2]
[336413974,1724817049821,-301.98,0.00012602,2]
[336413975,1724817049831,-2280.18,0.00012602,2]
[336413976,1724817049840,-500.0,0.00012602,2]
[336413977,1724817049851,-2059.76,0.00012602,2]
[336413978,1724817049864,-500.0,0.00012602,2]
[336413979,1724817049874,-10275.59,0.00012602,2]
[336413980,1724817049886,-500.0,0.00012602,2]
[336413981,1724817049896,-500.0,0.00012602,2]
[336413982,1724817049907,-984.45,0.00012602,2]
[336413983,1724817049917,-500.0,0.00012602,2]
[336413984,1724817049928,-2679.66,0.00012602,2]
[336413985,1724817049938,-3095.48272537,0.00012629,2]
[336413986,1724817049947,-600.0,0.00012714,2]
[336413987,1724817049959,-600.0,0.00012756,2]
[336413988,1724817049969,-600.0,0.00012756,2]
[336413989,1724817049979,-2715.06569498,0.00012782,2]
[336413990,1724817049988,-600.0,0.00012862,2]
[336413991,1724817049997,-708.47113529,0.00012862,2]
[336413992,1724817050006,-592.18,0.00012876,2]
[336413993,1724817050016,-628.02,0.00012876,2]
[336413994,1724817050026,-584.09,0.00012876,2]
[336413995,1724817050039,-500.0,0.00012876,2]
[336413996,1724817050048,-627.93,0.00012876,2]
[336413997,1724817050057,-500.0,0.00012876,2]
[336413998,1724817050067,-2462.28,0.00012876,2]
[336413999,1724817050076,-529.29,0.00012876,2]
[336414000,1724817050085,-1772.74,0.00012876,2]
[336414001,1724817050095,-500.0,0.00012876,2]
[336414002,1724817050104,-500.0,0.00012876,2]
[336414003,1724817050114,-175.06826955,0.00012876,2]
[336414004,1724817050126,-523.96,0.00012876,2]
[336414005,1724817050135,-500.0,0.00012876,2]
[336414006,1724817050145,-2017.69,0.00012876,2]
[336414007,1724817050154,-3505.12,0.00012876,2]
[336414008,1724817050163,-530.04,0.00012876,2]
[336414009,1724817050172,-997.18502331,0.00012876,2]
[336414010,1724817050323,-6249.71,0.00011506,2]